bitfinex/quotes_SOLUSD_20250819
["timestamp","ask_amount","ask_price","bid_price","bid_amount"]
[1755617092094,0.03,179.98,179.92,26.0]
[1755617092095,0.03,179.98,179.97,11.0646889]
[1755617092527,0.03,179.98,179.97,11.7246889]
[1755617092839,0.03,179.98,179.97,6.27376039]
[1755617093026,0.03,179.98,179.94,0.66]
[1755617093234,0.03,179.98,179.96,11.0646889]
[1755617093428,0.03,179.98,179.95,11.0646889]
[1755617093634,0.7,179.97,179.9,0.66]
[1755617093823,11.7646889,179.97,179.92,11.0646889]
[1755617094143,0.7,179.96,179.9,0.66]
[1755617094351,0.03,179.98,179.95,11.0646889]
[1755617094512,0.7,179.97,179.9,0.66]
[1755617094714,0.73,179.97,179.87,0.66]
[1755617095012,0.73,179.97,179.93,11.0646889]
[1755617095334,0.7,179.96,179.92,11.0646889]
[1755617095542,11.0946889,179.97,179.91,11.0646889]
[1755617095753,11.7646889,179.95,179.89,11.0646889]
[1755617096251,0.7,179.95,179.87,5.4707854]
[1755617096447,0.7,179.95,179.85,26.66]
[1755617096448,11.7646889,179.95,179.89,11.0646889]
[1755617096809,0.7,179.95,179.9,11.0646889]
[1755617097077,0.7,179.94,179.88,0.66]
[1755617097436,0.7,179.94,179.89,11.0646889]
[1755617098320,0.7,179.93,179.81,11.064689]
[1755617098518,0.7,179.93,179.85,11.7246889]
[1755617098519,11.0646889,179.91,179.85,11.7246889]
[1755617098820,0.7,179.91,179.86,11.0646889]
[1755617099022,0.7,179.91,179.87,11.0646889]
[1755617099430,11.0646889,179.93,179.87,11.0646889]
[1755617099629,11.7646889,179.92,179.86,37.7246889]
[1755617099828,11.7646889,179.92,179.86,37.0646889]
[1755617099829,0.7,179.92,179.86,37.0646889]
[1755617100037,11.0646889,179.93,179.87,11.0646889]
[1755617100211,11.0646889,179.96,179.9,11.0646889]
[1755617100636,11.7646889,179.95,179.89,11.0646889]
[1755617100952,11.0646889,179.94,179.87,0.66]
[1755617101256,11.0646889,179.94,179.88,11.0646889]
[1755617101429,0.7,179.95,179.9,11.0646889]
[1755617102036,0.7,179.94,179.87,0.66]
[1755617102216,11.7646889,179.94,179.89,11.0646889]
[1755617102417,0.7,179.94,179.89,11.0646889]
[1755617102617,11.0646889,179.94,179.87,0.66]
[1755617102814,0.7,179.93,179.88,11.0646889]
[1755617103054,0.7,179.93,179.89,11.0646889]
[1755617103414,11.0646889,179.95,179.89,11.7446889]
[1755617103616,11.0646889,179.94,179.88,11.0646889]
[1755617103924,11.0646889,179.92,179.86,11.7446889]
[1755617104226,11.0646889,179.89,179.83,11.8046889]
[1755617104439,13.59559401,179.94,179.83,0.06]
[1755617104440,26.0,179.92,179.83,0.06]
[1755617104662,11.0646889,179.84,179.83,0.06]
[1755617104869,13.59559401,179.87,179.83,0.06]
[1755617105069,24.66028291,179.87,179.83,0.06]
[1755617105377,24.66028291,179.84,179.83,0.06]
[1755617105581,39.59559401,179.82,179.81,0.06]
[1755617105760,39.59559401,179.78,179.77,0.06]
[1755617105953,50.66028291,179.78,179.77,0.06]
[1755617106153,40.27559401,179.78,179.77,0.06]
[1755617106368,39.59559401,179.78,179.77,0.06]
[1755617106672,0.68,179.78,179.77,0.06]
[1755617106846,11.7446889,179.78,179.77,0.06]
[1755617108259,25.34028291,179.78,179.77,0.06]
[1755617108570,14.27559401,179.78,179.77,0.06]
[1755617108769,94.32028291,179.78,179.77,0.06]
[1755617109394,68.32028291,179.78,179.77,0.06]
[1755617109554,39.59559401,179.71,179.68,0.06]
[1755617109878,93.64028291,179.71,179.68,0.06]
[1755617110175,98.86077731,179.71,179.68,0.06]
[1755617110355,94.32028291,179.71,179.68,0.06]
[1755617112777,97.22621964,179.71,179.68,0.06]
[1755617113649,13.59559401,179.7,179.68,0.06]
[1755617113847,24.66028291,179.69,179.68,0.06]
[1755617114086,39.59559401,179.66,179.65,0.06]
[1755617114255,93.64028291,179.66,179.65,0.06]
[1755617114458,42.98,179.66,179.65,0.06]
[1755617114854,54.0446889,179.66,179.65,0.06]
[1755617115358,67.64028291,179.66,179.65,0.06]
[1755617115768,68.32028291,179.66,179.65,0.06]
[1755617116276,69.87311091,179.66,179.65,0.06]
[1755617117179,58.80842201,179.66,179.65,0.06]
[1755617117552,2.232828,179.66,179.65,0.74]
[1755617117778,45.232828,179.66,179.65,0.74]
[1755617118279,43.0,179.66,179.65,0.74]
[1755617118663,68.34028291,179.66,179.65,0.06]
[1755617119268,67.66028291,179.66,179.65,0.06]
[1755617119780,56.59559401,179.66,179.65,0.06]
[1755617119957,67.66028291,179.66,179.65,0.06]
[1755617120161,69.89323591,179.66,179.65,0.06]
[1755617120582,43.0,179.66,179.65,0.06]
[1755617120764,2.90593673,179.71,179.65,11.8046889]
[1755617120966,43.0,179.7,179.66,0.68]
[1755617121165,43.0,179.72,179.69,11.0646889]
[1755617121389,43.0,179.72,179.71,11.0646889]
[1755617121587,43.0,179.72,179.71,0.68]
[1755617122455,43.0,179.72,179.71,11.7446889]
[1755617123410,11.0646889,179.72,179.67,0.68]
[1755617123596,54.0946889,179.73,179.68,0.68]
[1755617123755,54.0946889,179.73,179.69,0.68]
[1755617123962,43.03,179.73,179.7,0.68]
[1755617124386,43.02,179.72,179.71,11.7446889]
[1755617124878,0.03,179.73,179.71,11.7446889]
[1755617125079,0.03,179.73,179.72,11.7446889]
[1755617126264,0.03,179.73,179.72,0.68]
[1755617126915,11.0946889,179.73,179.69,0.68]
[1755617127209,43.0,179.72,179.66,11.7446889]
[1755617127500,54.0646889,179.72,179.66,0.68]
[1755617127703,11.0646889,179.71,179.66,0.68]
[1755617127872,43.0,179.72,179.67,11.7446889]
[1755617128076,43.0,179.72,179.68,11.7446889]
[1755617128399,43.0,179.72,179.69,0.68]
[1755617128592,54.0646889,179.72,179.66,11.7446889]
[1755617128782,43.0,179.72,179.67,11.7446889]
[1755617128997,43.0,179.72,179.68,0.68]
[1755617129320,43.0,179.72,179.71,11.0646889]
[1755617129495,43.0,179.72,179.71,11.7446889]
[1755617129693,0.03,179.73,179.71,11.7446889]
[1755617129893,0.03,179.73,179.72,11.0646889]
[1755617130089,0.03,179.73,179.72,11.7446889]
[1755617131990,0.03,179.73,179.72,0.68]
[1755617132185,0.03,179.73,179.71,11.0646889]
[1755617132690,0.03,179.73,179.72,0.68]
[1755617133031,0.03,179.73,179.72,11.7446889]
[1755617133318,0.03,179.73,179.72,0.68]
[1755617133828,0.03,179.73,179.72,11.7446889]
[1755617134000,0.03,179.73,179.72,0.68]
[1755617136516,0.03,179.73,179.72,11.7446889]
[1755617141493,0.03,179.73,179.7,11.7746889]
[1755617141694,11.7846889,179.73,179.68,0.71]
[1755617141919,11.7846889,179.73,179.68,11.7746889]
[1755617141920,0.03,179.73,179.68,11.7746889]
[1755617142645,0.03,179.73,179.69,0.71]
[1755617143143,11.7846889,179.73,179.67,11.0646889]
[1755617143313,43.65,179.72,179.65,0.06]
[1755617143636,13.59559401,179.71,179.65,0.06]
[1755617143831,11.0646889,179.67,179.65,0.06]
[1755617144719,0.69,179.67,179.65,0.06]
[1755617144905,11.7546889,179.67,179.65,0.06]
[1755617145104,0.69,179.67,179.65,0.06]
[1755617145304,11.0646889,179.66,179.65,0.06]
[1755617145523,68.31028291,179.66,179.65,0.06]
[1755617148936,37.0646889,179.64,179.63,0.06]
[1755617149247,55.07722248,179.64,179.63,0.06]
[1755617149440,55.76722248,179.64,179.63,0.06]
[1755617150024,55.76722248,179.64,179.59,0.2]
[1755617150025,13.59559401,179.61,179.59,0.2]
[1755617150344,54.0246889,179.6,179.59,0.2]
[1755617150525,54.7146889,179.6,179.59,0.2]
[1755617152538,56.9485149,179.6,179.59,0.2]
[1755617153633,10.0,179.69,179.59,0.2]
[1755617153844,13.2977669,179.65,179.59,11.9746889]
[1755617154020,42.96,179.64,179.59,11.9746889]
[1755617154219,42.96,179.64,179.6,0.71]
[1755617154724,42.96,179.64,179.59,11.2646889]
[1755617154725,42.96,179.64,179.61,11.7746889]
[1755617154923,42.96,179.64,179.62,0.71]
[1755617155122,42.96,179.64,179.63,0.71]
[1755617156259,42.96,179.64,179.63,11.7746889]
[1755617156422,42.94,179.67,179.63,11.7746889]
[1755617156762,42.94,179.67,179.65,11.0646889]
[1755617157050,42.94,179.67,179.66,0.71]
[1755617157646,42.94,179.67,179.66,11.7746889]
[1755617157849,42.94,179.67,179.66,0.71]
[1755617158146,42.94,179.67,179.66,11.7746889]
[1755617158731,0.03,179.71,179.66,0.71]
[1755617158931,42.94,179.7,179.66,0.71]
[1755617160429,0.03,179.71,179.69,11.0646889]
[1755617160617,0.03,179.71,179.7,11.7746889]
[1755617162350,0.03,179.71,179.7,0.71]
[1755617162538,0.03,179.71,179.7,11.7746889]
[1755617165959,0.03,179.71,179.7,17.32948894]
[1755617166270,0.03,179.71,179.7,6.26480004]
[1755617166442,0.03,179.71,179.7,17.32948894]
[1755617166866,0.03,179.71,179.7,6.26480004]
[1755617167064,0.03,179.71,179.7,17.32948894]
[1755617170555,0.03,179.73,179.72,26.0]
[1755617170862,0.03,179.73,179.72,37.0646889]
[1755617171060,0.03,179.73,179.72,37.7446889]
[1755617174172,0.03,179.73,179.72,11.0646889]
[1755617175348,0.03,179.73,179.67,0.68]
[1755617175565,0.03,179.73,179.72,11.0646889]
[1755617175849,0.03,179.73,179.72,11.7446889]
[1755617176181,0.03,179.73,179.72,0.68]
[1755617176352,0.03,179.73,179.72,11.7446889]
[1755617176681,0.03,179.73,179.72,0.68]
[1755617176864,0.03,179.73,179.72,11.7446889]
[1755617177386,0.03,179.75,179.74,26.0]
[1755617177693,0.03,179.77,179.74,11.0646889]
[1755617177865,0.03,179.77,179.76,11.0646889]
[1755617178489,0.72,179.77,179.72,11.0646889]
[1755617178651,0.69,179.76,179.71,11.0646889]
[1755617178855,0.69,179.75,179.71,11.0646889]
[1755617179063,0.69,179.75,179.72,11.0646889]
[1755617179266,0.03,179.77,179.72,11.0646889]
[1755617179463,0.03,179.77,179.75,11.0646889]
[1755617180107,0.72,179.77,179.73,11.0646889]
[1755617180312,0.03,179.77,179.76,11.0646889]
[1755617180492,0.03,179.77,179.76,11.7446889]
[1755617181615,0.03,179.77,179.7,26.0]
[1755617181803,0.03,179.77,179.76,11.7446889]
[1755617182823,0.03,179.77,179.76,90.9446889]
[1755617183911,0.03,179.77,179.76,102.0093778]
[1755617184095,0.03,179.79,179.78,26.0]
[1755617184289,0.03,179.81,179.78,37.0646889]
[1755617184489,0.03,179.81,179.8,37.0646889]
[1755617185101,0.03,179.81,179.8,37.7446889]
[1755617186008,0.03,179.83,179.8,37.7446889]
[1755617186194,0.03,179.83,179.82,11.0646889]
[1755617186622,0.03,179.83,179.82,11.7446889]
[1755617189608,0.03,179.83,179.82,116.2646889]
[1755617190044,0.03,179.83,179.82,116.9446889]
[1755617190230,0.03,179.83,179.82,116.2646889]
[1755617190833,0.03,179.83,179.82,116.9446889]
[1755617192236,0.03,179.83,179.82,90.9446889]
[1755617194536,0.79,179.91,179.85,26.0]
[1755617194743,0.79,179.91,179.9,11.0646889]
[1755617196138,0.1,179.91,179.9,11.0646889]
[1755617196345,0.1,179.91,179.9,11.7446889]
[1755617197622,0.1,179.91,179.9,26.0]
[1755617197822,0.1,179.91,179.9,37.0646889]
[1755617199841,0.1,179.91,179.9,42.7190228]
[1755617200236,0.1,179.91,179.9,43.3990228]
[1755617201247,0.1,179.91,179.9,86.1190228]
[1755617201620,0.1,179.91,179.9,97.1837117]
[1755617201838,0.03,179.93,179.9,97.1837117]
[1755617202027,0.03,179.93,179.91,0.68]
[1755617202522,0.03,179.95,179.94,26.0]
[1755617202722,0.03,179.97,179.94,79.7646889]
[1755617202931,0.03,179.97,179.95,0.68]
[1755617203123,0.03,179.97,179.96,11.0646889]
[1755617203346,0.03,179.97,179.96,11.7446889]
[1755617204040,0.03,179.97,179.96,11.0646889]
[1755617206082,0.74,179.97,179.96,26.0]
[1755617206225,0.74,179.97,179.96,11.0646889]
[1755617206432,0.03,179.97,179.96,11.0646889]
[1755617208126,0.03,179.97,179.96,11.7446889]
[1755617208320,0.03,179.97,179.96,11.0646889]
[1755617209023,0.03,179.97,179.93,69.38]
[1755617209240,0.03,179.97,179.96,11.0646889]
[1755617209850,0.03,179.97,179.93,69.38]
[1755617210170,0.03,179.97,179.96,11.0646889]
[1755617210335,0.03,179.97,179.93,26.0]
[1755617210541,0.71,179.96,179.94,11.0646889]
[1755617210771,0.03,179.97,179.95,11.0646889]
[1755617210956,0.03,179.97,179.96,11.0646889]
[1755617211468,0.74,179.97,179.95,11.0646889]
[1755617211656,0.74,179.97,179.96,11.0646889]
[1755617212502,0.03,179.97,179.96,11.0646889]
[1755617212978,0.03,179.97,179.93,26.68]
[1755617213162,0.03,179.97,179.94,0.68]
[1755617213682,0.74,179.97,179.93,26.0]
[1755617213848,0.03,179.97,179.96,11.0646889]
[1755617216848,0.03,179.97,179.93,26.0]
[1755617217279,0.74,179.97,179.93,26.0]
[1755617217467,0.71,179.96,179.92,11.0646889]
[1755617217665,0.71,179.95,179.92,37.0646889]
[1755617218180,0.71,179.94,179.9,5.6543339]
[1755617218350,0.71,179.94,179.91,11.0646889]
[1755617219358,0.71,179.93,179.9,26.0]
[1755617219690,0.71,179.92,179.89,0.06]
[1755617219853,11.0646889,179.94,179.89,0.06]
[1755617220054,0.71,179.91,179.89,0.06]
[1755617220453,11.0646889,179.9,179.89,0.06]
[1755617220678,0.71,179.91,179.89,0.06]
[1755617220858,11.7746889,179.9,179.89,0.06]
[1755617221078,0.71,179.9,179.89,0.06]
[1755617221463,11.7746889,179.9,179.89,0.06]
[1755617222965,0.71,179.9,179.89,0.06]
[1755617223380,0.69,179.95,179.89,11.1246889]
[1755617223573,0.69,179.95,179.9,11.0646889]
[1755617223765,0.69,179.95,179.91,11.0646889]
[1755617223978,0.69,179.94,179.91,11.0646889]
[1755617224155,11.0946889,179.97,179.93,11.0646889]
[1755617224156,0.69,179.95,179.93,11.0646889]
[1755617224485,0.03,179.97,179.94,11.0646889]
[1755617224665,0.03,179.97,179.96,11.0646889]
[1755617225499,0.03,179.97,179.96,11.7446889]
[1755617225803,0.03,179.97,179.96,11.0646889]
[1755617226096,0.03,179.97,179.92,26.0]
[1755617226097,0.03,179.97,179.94,0.68]
[1755617226402,0.03,179.97,179.96,11.0646889]
[1755617226896,0.03,179.97,179.96,11.7446889]
[1755617227577,0.03,179.97,179.96,11.0646889]
[1755617227897,0.03,179.97,179.93,0.68]
[1755617228086,0.03,179.97,179.95,11.0646889]
[1755617228258,0.03,179.97,179.96,11.0646889]
[1755617228674,0.03,179.97,179.93,0.68]
[1755617228981,0.03,179.97,179.89,0.06]
[1755617228982,0.72,179.97,179.91,26.0]
[1755617229191,0.72,179.97,179.93,11.0646889]
[1755617229705,0.69,179.96,179.9,11.0646889]
[1755617229922,0.69,179.96,179.89,11.1246889]
[1755617230205,0.69,179.96,179.9,11.0646889]
[1755617230407,11.0646889,179.95,179.89,11.1246889]
[1755617230594,0.03,179.97,179.89,0.06]
[1755617230595,11.7546889,179.94,179.89,0.06]
[1755617230775,0.69,179.93,179.89,0.06]
[1755617231200,11.0646889,179.95,179.9,0.68]
[1755617231393,0.69,179.94,179.89,11.1246889]
[1755617231600,0.03,179.97,179.89,0.06]
[1755617231601,11.0646889,179.92,179.89,0.06]
[1755617231824,0.69,179.92,179.89,0.06]
[1755617232180,11.7546889,179.94,179.89,0.06]
[1755617232485,11.0646889,179.93,179.89,0.06]
[1755617232689,11.0646889,179.91,179.89,0.06]
[1755617232884,11.7546889,179.93,179.89,0.06]
[1755617233091,0.69,179.92,179.89,0.06]
[1755617233699,13.62559401,179.97,179.89,11.1246889]
[1755617233700,11.7546889,179.95,179.89,11.1246889]
[1755617233884,0.69,179.95,179.89,11.1246889]
[1755617234210,0.69,179.95,179.9,11.0646889]
[1755617234397,0.03,179.97,179.92,11.0646889]
[1755617234582,0.03,179.97,179.94,11.0646889]
[1755617235999,0.03,179.97,179.96,11.0646889]
[1755617236316,0.03,179.97,179.95,0.68]
[1755617236789,0.03,179.97,179.96,0.68]
[1755617238989,0.03,179.97,179.93,26.0]
[1755617239199,0.03,179.97,179.94,0.68]
[1755617239402,0.03,179.97,179.96,11.0646889]
[1755617240318,0.03,179.97,179.96,11.7446889]
[1755617243110,0.03,179.97,179.96,0.68]
[1755617243421,0.03,179.97,179.96,11.7446889]
[1755617247638,0.03,180.01,179.99,26.0]
[1755617247807,0.03,180.01,180.0,11.0646889]
[1755617248124,0.03,180.01,180.0,11.7446889]
[1755617249221,0.03,180.01,180.0,0.68]
[1755617249442,0.03,180.01,179.98,26.68]
[1755617249616,0.03,180.01,180.0,11.0646889]
[1755617250905,0.03,180.01,180.0,11.7446889]
[1755617252434,0.03,180.01,180.0,90.9446889]
[1755617252811,0.03,180.01,180.0,79.2]
[1755617253231,0.03,180.01,180.0,90.2646889]
[1755617253935,0.03,180.01,180.0,90.9646889]
[1755617255419,0.03,180.01,180.0,11.7646889]
[1755617259623,0.69,180.12,180.03,26.0]
[1755617259823,56.03559401,180.18,180.03,26.0]
[1755617259824,0.69,180.11,180.09,11.0646889]
[1755617260039,0.69,180.11,180.04,0.7]
[1755617260247,0.69,180.11,180.09,11.0646889]
[1755617260540,0.69,180.11,180.1,11.0646889]
[1755617260733,2.89790751,180.17,180.05,0.7]
[1755617260937,0.69,180.13,180.05,0.7]
[1755617261246,0.69,180.13,180.03,0.7]
[1755617261543,11.0646889,180.12,180.06,11.0646889]
[1755617261721,11.0646889,180.12,180.07,11.0646889]
[1755617261917,0.69,180.11,180.03,0.7]
[1755617262155,0.69,180.11,180.05,11.0646889]
[1755617262321,11.7546889,180.11,180.05,11.0646889]
[1755617262527,11.7546889,180.11,180.02,26.0]
[1755617262528,0.69,180.1,180.07,11.0646889]
[1755617262728,0.69,180.09,180.07,11.0646889]
[1755617263024,0.69,180.09,180.06,11.0646889]
[1755617263236,0.69,180.08,180.06,11.0646889]
[1755617263434,0.69,180.07,180.04,11.0646889]
[1755617263636,0.69,180.07,180.05,11.0646889]
[1755617263815,0.69,180.07,180.01,69.12]
[1755617264014,0.69,180.07,180.05,11.0646889]
[1755617264842,0.69,180.07,180.03,5.55073354]
[1755617265046,0.69,180.06,180.03,11.0646889]
[1755617265537,11.0646889,180.04,179.96,0.7]
[1755617265737,11.0646889,180.02,179.96,11.0646889]
[1755617265935,11.0646889,180.02,179.95,0.06]
[1755617265936,0.69,180.02,179.98,11.0646889]
[1755617266163,0.69,180.02,179.95,26.76]
[1755617266637,0.69,180.02,179.97,0.06]
[1755617266837,0.69,180.02,179.97,0.76]
[1755617267815,0.69,180.04,179.98,0.7]
[1755617268134,11.7546889,180.03,179.98,11.0646889]
[1755617268446,0.69,180.02,179.98,11.0646889]
[1755617268647,0.69,180.02,179.99,11.0646889]
[1755617268947,55.99559401,180.09,179.99,11.0646889]
[1755617269143,0.69,180.07,180.03,11.0646889]
[1755617269321,53.4646889,180.09,180.03,11.7646889]
[1755617270359,42.4,180.09,180.06,11.0646889]
[1755617270738,0.69,180.1,180.06,11.0646889]
[1755617271141,0.69,180.1,180.05,11.0646889]
[1755617271932,11.0646889,180.1,180.0,26.0]
[1755617272137,11.7546889,180.09,180.03,11.0646889]
[1755617272351,0.69,180.09,180.04,11.0646889]
[1755617272637,0.69,180.09,180.04,0.7]
[1755617272947,0.69,180.09,180.04,11.7646889]
[1755617273335,0.69,180.09,180.05,11.0646889]
[1755617273534,0.69,180.09,180.04,11.7646889]
[1755617273965,0.69,180.09,180.05,11.0646889]
[1755617274142,0.69,180.09,180.04,11.7646889]
[1755617274534,11.0646889,180.1,180.04,11.7646889]
[1755617274535,11.0646889,180.1,180.05,0.7]
[1755617274865,11.7546889,180.1,180.05,0.7]
[1755617275252,0.69,180.1,180.05,0.7]
[1755617275463,0.03,180.11,180.07,11.0646889]
[1755617276164,0.03,180.11,180.07,37.0646889]
[1755617276363,0.03,180.11,180.07,26.0]
[1755617276761,0.69,180.1,180.07,26.0]
[1755617276952,11.0946889,180.11,180.07,26.0]
[1755617277166,0.69,180.09,180.02,11.7646889]
[1755617277472,0.69,180.09,180.04,11.0646889]
[1755617277685,0.03,180.11,180.03,0.7]
[1755617277847,11.0946889,180.11,180.03,0.7]
[1755617278050,11.0946889,180.11,180.05,11.0646889]
[1755617279240,0.03,180.11,180.08,26.0]
[1755617279440,0.03,180.11,180.07,37.0646889]
[1755617279990,0.03,180.11,180.07,26.7]
[1755617280189,0.69,180.1,180.07,26.0]
[1755617280474,7.08088358,180.08,180.0,0.7]
[1755617280675,0.69,180.09,180.02,7.08088358]
[1755617280890,7.08088358,180.08,180.02,7.78088358]
[1755617281082,0.69,180.09,180.01,33.08088358]
[1755617281083,7.08088358,180.07,180.01,33.08088358]
[1755617281295,0.69,180.06,179.97,0.06]
[1755617281596,7.08088358,180.0,179.97,0.06]
[1755617281754,55.93559401,180.08,179.97,0.76]
[1755617281755,7.08088358,180.02,179.97,0.76]
[1755617281957,0.69,180.04,179.98,0.7]
[1755617282264,7.08088358,180.01,179.97,0.06]
[1755617282576,11.43263436,180.01,179.97,0.06]
[1755617282773,11.02263436,180.01,179.97,0.06]
[1755617283079,11.43263436,180.04,179.98,11.72263436]
[1755617283576,11.02263436,180.05,179.99,11.02263436]
[1755617283764,11.02263436,180.05,179.99,11.72263436]
[1755617284486,11.02263436,180.04,179.99,0.7]
[1755617284696,0.41,180.05,179.99,11.72263436]
[1755617285059,11.43263436,180.05,179.99,11.72263436]
[1755617285478,0.03,180.06,180.0,0.7]
[1755617285958,0.03,180.06,180.01,11.02263436]
[1755617286168,0.03,180.06,180.01,11.72263436]
[1755617286687,0.44,180.06,180.01,11.72263436]
[1755617286862,11.46263436,180.06,180.01,0.7]
[1755617287254,0.03,180.06,180.02,0.7]
[1755617287654,0.03,180.06,180.02,11.72263436]
[1755617288168,0.03,180.06,180.03,11.72263436]
[1755617288697,0.03,180.06,180.04,0.7]
[1755617289058,0.03,180.06,180.04,11.72263436]
[1755617289259,0.03,180.06,180.05,0.7]
[1755617289574,0.03,180.06,179.98,105.2]
[1755617289765,0.03,180.06,180.04,0.7]
[1755617290606,0.03,180.06,180.03,11.02263436]
[1755617290607,0.03,180.06,180.01,0.7]
[1755617290895,11.02263436,180.05,179.99,11.72263436]
[1755617291052,11.02263436,180.03,179.97,11.78263436]
[1755617291256,0.67,180.05,179.98,0.7]
[1755617291459,11.69263436,180.05,179.99,11.02263436]
[1755617291690,0.67,180.05,179.98,11.72263436]
[1755617291977,11.02263436,180.03,179.97,11.08263436]
[1755617292193,11.02263436,180.04,179.98,11.72263436]
[1755617292815,11.02263436,180.05,179.99,11.72263436]
[1755617292975,11.02263436,180.05,179.97,0.06]
[1755617292976,11.05263436,180.06,180.0,11.02263436]
[1755617293176,11.02263436,180.05,180.0,0.7]
[1755617293398,0.03,180.06,180.0,0.7]
[1755617293704,11.02263436,180.05,180.0,0.7]
[1755617293906,11.05263436,180.06,180.01,0.7]
[1755617294320,11.02263436,180.04,179.99,0.7]
[1755617294810,11.69263436,180.03,179.97,11.08263436]
[1755617295015,11.02263436,180.04,180.0,0.7]
[1755617295221,11.02263436,180.05,180.0,0.7]
[1755617295425,0.03,180.06,180.04,11.02263436]
[1755617295583,0.03,180.06,180.05,0.7]
[1755617296079,0.03,180.06,180.05,11.72263436]
[1755617296286,0.03,180.06,180.05,0.7]
[1755617296511,0.03,180.06,180.02,26.0]
[1755617296694,0.03,180.06,180.03,11.02263436]
[1755617297015,0.03,180.06,180.03,11.72263436]
[1755617297582,0.03,180.06,180.03,0.7]
[1755617297782,0.03,180.06,180.01,11.72263436]
[1755617298133,0.03,180.06,180.01,0.7]
[1755617298134,11.72263436,180.06,180.01,0.7]
[1755617298293,0.7,180.06,180.01,0.7]
[1755617298490,11.72263436,180.06,180.01,0.7]
[1755617298698,0.03,180.06,180.02,11.02263436]
[1755617298925,0.03,180.06,180.03,11.72263436]
[1755617299230,0.03,180.06,180.01,11.02263436]
[1755617299529,11.02263436,180.05,179.99,11.72263436]
[1755617300045,0.03,180.06,180.01,11.02263436]
[1755617300413,0.03,180.06,179.97,55.95559401]
[1755617300749,0.03,180.06,180.02,0.7]
[1755617301127,0.03,180.06,180.02,11.72263436]
[1755617301436,0.03,180.06,180.03,11.72263436]
[1755617302225,0.03,180.06,180.03,0.7]
[1755617303027,0.03,180.06,180.01,11.72263436]
[1755617303445,0.03,180.06,180.02,0.7]
[1755617303782,11.02263436,180.05,179.99,0.06]
[1755617303918,11.02263436,180.05,179.99,90.28263436]
[1755617304121,11.02263436,180.05,179.99,79.96]
[1755617304465,7.08302661,180.05,179.99,87.04302661]
[1755617304750,0.7,180.06,179.99,87.04302661]
[1755617304918,7.08302661,180.05,179.99,79.96]
[1755617305258,7.08302661,180.04,179.99,79.96]
[1755617305413,7.08302661,180.04,179.99,0.76]
[1755617305612,7.75302661,180.03,179.99,0.06]
[1755617306051,7.08302661,180.0,179.99,0.06]
[1755617306429,42.26,180.05,179.99,0.06]
[1755617306430,50.01302661,180.05,179.99,7.84302661]
[1755617307137,0.03,180.06,180.04,7.08302661]
[1755617307314,0.03,180.06,180.05,7.08302661]
[1755617307510,0.03,180.06,180.05,7.78302661]
[1755617308635,0.03,180.06,180.04,7.08302661]
[1755617309023,0.03,180.06,180.05,7.08302661]
[1755617309743,0.03,180.06,180.02,7.08302661]
[1755617309950,0.7,180.06,180.01,7.08302661]
[1755617310441,0.7,180.06,180.01,7.78302661]
[1755617310745,0.7,180.06,180.01,0.7]